bitfinex-derivatives/quotes_SOLF0:USTF0_20240827
["timestamp","ask_amount","ask_price","bid_price","bid_amount"]
[1724787813564,13.1611,154.74,154.71,3.2316]
[1724787813762,3.27696003,154.74,154.71,3.27410571]
[1724787814071,13.20696003,154.74,154.71,3.27410571]
[1724787814666,13.20696003,154.74,154.71,0.04250571]
[1724787814873,0.04586003,154.74,154.71,0.04250571]
[1724787815062,9.97586003,154.74,154.71,0.04250571]
[1724787815473,13.20706003,154.74,154.71,0.04250571]
[1724787816376,0.04586003,154.74,154.71,0.04250571]
[1724787817067,0.04586003,154.74,154.72,3.2313]
[1724787817271,0.04586003,154.74,154.71,0.04250571]
[1724787817474,0.04586003,154.74,154.71,9.97250571]
[1724787817674,1.0,154.75,154.71,9.97250571]
[1724787818469,1.0,154.75,154.73,3.2311]
[1724787819674,1.0,154.75,154.74,3.231]
[1724787820478,1.0,154.75,154.74,4.5668]
[1724787830175,1.0,154.75,154.71,0.04250571]
[1724787830975,4.2309,154.75,154.73,3.2312]
[1724787839784,4.2309,154.75,154.72,13.1613]
[1724787842001,3.2311,154.74,154.71,0.04250571]
[1724787842292,10.93,154.75,154.71,0.04250571]
[1724787843296,1.0,154.75,154.71,13.20410571]
[1724787844391,4.2309,154.75,154.72,3.2314]
[1724787847591,4.2309,154.75,154.71,9.97250571]
[1724787847793,1.0,154.75,154.73,9.93]
[1724787849293,1.0,154.75,154.74,3.231]
[1724787849502,1.0,154.75,154.73,9.93]
[1724787850298,1.0,154.75,154.73,13.1611]
[1724787854007,1.0,154.75,154.74,3.231]
[1724787857411,0.04581567,154.76,154.75,13.1608]
[1724787862011,0.04581567,154.76,154.75,3.2308]
[1724787862417,0.04581567,154.76,154.74,2.5563]
[1724787862619,0.04581567,154.76,154.71,4.00250571]
[1724787862820,0.04581567,154.76,154.71,0.04250571]
[1724787863825,3.27651567,154.76,154.73,3.2311]
[1724787864025,0.04581567,154.76,154.73,9.93]
[1724787864919,0.04581567,154.76,154.74,3.231]
[1724787865119,0.04581567,154.76,154.73,9.93]
[1724787866326,3.27641567,154.76,154.73,13.1612]
[1724787870029,3.27641567,154.76,154.74,3.231]
[1724787877845,3.27641567,154.76,154.73,3.2312]
[1724787878933,3.27641567,154.76,154.74,3.231]
[1724787880037,3.27641567,154.76,154.73,3.2311]
[1724787880928,3.2308,154.75,154.73,3.2311]
[1724787884335,3.2312,154.74,154.71,3.27400571]
[1724787884640,9.93,154.75,154.71,3.27400571]
[1724787885042,3.2311,154.74,154.71,3.27400571]
[1724787885436,9.93,154.75,154.71,3.27400571]
[1724787885742,3.2311,154.74,154.71,3.27400571]
[1724787887243,3.2312,154.73,154.71,3.27400571]
[1724787888140,9.97581567,154.76,154.71,0.04250571]
[1724787888846,3.2314,154.72,154.71,0.04250571]
[1724787889442,3.2313,154.73,154.71,0.04250571]
[1724787889836,0.04581567,154.76,154.71,0.04250571]
[1724787890041,3.2311,154.74,154.71,3.27410571]
[1724787899152,3.2313,154.73,154.71,0.04250571]
[1724787899357,9.93,154.74,154.71,0.04250571]
[1724787899751,3.2314,154.72,154.71,0.04250571]
[1724787899950,13.1614,154.72,154.71,0.04250571]
[1724787906559,3.2314,154.72,154.71,0.04250571]
[1724787906949,0.04581567,154.76,154.71,0.04250571]
[1724787907155,3.96,154.75,154.72,3.2314]
[1724787907755,3.2311,154.74,154.71,3.27400571]
[1724787908949,7.1908,154.75,154.72,3.2313]
[1724787910160,3.2308,154.75,154.72,3.2313]
[1724787910561,3.2308,154.75,154.73,3.2312]
[1724787914252,3.27641567,154.76,154.74,3.231]
[1724787914962,0.04581567,154.76,154.74,3.231]
[1724787915460,0.04581567,154.76,154.75,3.2308]
[1724787916362,3.27957336,154.81,154.78,3.2301]
[1724787916551,9.93,154.82,154.78,3.2301]
[1724787917159,3.22074983,154.81,154.78,3.2301]
[1724787917366,3.2298,154.8,154.78,3.27131364]
[1724787918161,3.2298,154.8,154.78,0.04121364]
[1724787919561,3.2298,154.8,154.78,3.27141364]
[1724787920157,3.27249646,154.81,154.78,3.27141364]
[1724787920361,3.27249646,154.81,154.79,3.23]
[1724787920559,3.27249646,154.81,154.78,0.04121364]
[1724787920963,3.27249646,154.81,154.78,3.27131364]
[1724787922370,0.04289646,154.81,154.78,0.04121364]
[1724787922870,9.93,154.8,154.78,0.04121364]
[1724787923064,9.93,154.8,154.78,3.27121364]
[1724787923366,3.27249646,154.81,154.78,3.27121364]
[1724787923866,0.04289646,154.81,154.79,3.2299]
[1724787924862,0.04289646,154.81,154.78,0.04121364]
[1724787925064,0.04289646,154.81,154.8,3.2298]
[1724787925372,17.05598824,154.86,154.8,9.93]
[1724787925667,3.229,154.84,154.81,3.2294]
[1724787926066,58.06157706,154.92,154.8,9.93]
[1724787926266,58.06157706,154.92,154.81,11.1843]
[1724787926267,9.93,154.88,154.81,11.1843]
[1724787926468,0.0438899,154.86,154.83,0.04822556]
[1724787927061,3.2723899,154.86,154.83,3.27722556]
[1724787932672,3.2288,154.85,154.83,3.27722556]
[1724787935985,3.2288,154.85,154.83,0.04822556]
[1724787936183,3.2289,154.84,154.83,0.04822556]
[1724787936982,7.1889,154.84,154.83,0.04822556]
[1724787938678,17.1189,154.84,154.83,0.04822556]
[1724787948591,3.23,154.79,154.75,2.5695]
[1724787948791,9.93,154.8,154.75,2.5695]
[1724787949294,3.2303,154.78,154.75,5.8002]
[1724787949592,3.27863625,154.78,154.75,5.84738211]
[1724787953501,3.2305,154.77,154.75,2.61668211]
[1724787953701,3.2305,154.77,154.75,0.04718211]
[1724787958006,0.04833625,154.78,154.75,0.04718211]
[1724787958202,3.2306,154.76,154.75,0.04718211]
[1724787965608,59.54968678,155.0,154.75,49.69718211]
[1724787965799,9.93,154.99,154.89,9.93]
[1724787966001,9.93,154.99,154.9,9.93]
[1724787966501,3.96,154.98,154.9,9.93]
[1724787966704,3.26870637,154.96,154.93,0.04747639]
[1724787966908,0.04220637,154.96,154.93,9.97747639]
[1724787967211,0.04220637,154.96,154.95,9.93]
[1724787967899,0.04220637,154.96,154.93,0.04747639]
[1724787967900,3.26870637,154.96,154.93,0.04747639]
[1724787968096,0.04220637,154.96,154.93,0.04747639]
[1724787968298,9.93,154.95,154.93,0.04747639]
[1724787968799,13.1568,154.94,154.93,0.04747639]
[1724787969706,3.2273,154.92,154.8,39.72]
[1724787969911,9.93,154.91,154.84,9.93]
[1724787970212,13.87,154.91,154.86,3.2285]
[1724787970911,0.04462368,154.9,154.87,0.04896596]
[1724787972011,0.04462368,154.9,154.87,9.97896596]
[1724787972814,0.04462368,154.9,154.88,3.2281]
[1724787973401,0.04462368,154.9,154.87,9.97896596]
[1724787973606,0.04462368,154.9,154.89,3.2279]
[1724787973810,0.04462368,154.9,154.87,9.97896596]
[1724787974013,0.04462368,154.9,154.87,24.85896596]
[1724787974517,0.04462368,154.9,154.89,3.2279]
[1724787974713,0.04462368,154.9,154.89,28.0379]
[1724787976520,0.04462368,154.9,154.89,3.2279]
[1724787982519,0.04462368,154.9,154.87,0.04896596]
[1724787983624,0.04462368,154.9,154.88,3.228]
[1724787984122,0.04462368,154.9,154.87,0.04896596]
[1724787984916,0.04462368,154.9,154.89,3.2279]
[1724787990226,1.2354,154.98,154.93,3.2269]
[1724787990527,5.3954,154.98,154.93,3.2269]
[1724787990831,3.2263,154.97,154.93,3.2269]
[1724787991235,3.27155218,154.97,154.93,3.26934472]
[1724787992230,3.2265,154.96,154.93,3.26934472]
[1724787994931,3.27155218,154.97,154.93,3.26934472]
[1724787995332,0.04525218,154.97,154.93,3.26934472]
[1724787996335,3.2264,154.96,154.93,3.26934472]
[1724787998332,0.04525218,154.97,154.93,9.96244472]
[1724787998727,0.04525218,154.97,154.95,9.92]
[1724787998927,0.04525218,154.97,154.95,13.1465]
[1724787999831,0.04525218,154.97,154.95,3.2265]
[1724788003939,3.27145218,154.97,154.95,3.2265]
[1724788006936,3.27145218,154.97,154.94,3.2267]
[1724788010542,3.27145218,154.97,154.95,3.2266]
[1724788010744,0.04525218,154.97,154.93,24.83244472]
[1724788011239,0.04525218,154.97,154.96,3.2264]
[1724788022753,0.04525218,154.97,154.93,0.04244472]
[1724788022954,0.04525218,154.97,154.93,9.96244472]
[1724788023454,0.04525218,154.97,154.93,0.04244472]
[1724788024054,0.04525218,154.97,154.93,3.26934472]
[1724788024548,3.2265,154.96,154.93,3.26934472]
[1724788024751,0.04525218,154.97,154.94,3.2268]
[1724788026143,3.27155218,154.97,154.94,3.2268]
[1724788029567,0.04525218,154.97,154.93,9.96244472]
[1724788030752,0.04525218,154.97,154.95,3.2265]
[1724788031764,3.27155218,154.97,154.94,3.2267]
[1724788044165,3.27155218,154.97,154.93,9.96244472]
[1724788044166,9.92,154.96,154.93,0.04244472]
[1724788044461,9.92,154.94,154.87,2.4551662]
[1724788044659,3.2275,154.91,154.87,3.2282]
[1724788044857,3.2275,154.91,154.85,11.2056]
[1724788045055,3.2275,154.91,154.86,4.66634267]
[1724788045256,17.27489465,154.93,154.87,3.2282]
[1724788045257,3.2277,154.9,154.87,3.2282]
[1724788045463,3.2277,154.9,154.87,3.2750391]
[1724788045659,3.27530729,154.9,154.87,3.2750391]
[1724788046566,3.2279,154.89,154.87,0.0468391]
[1724788046767,0.04760729,154.9,154.87,0.0468391]
[1724788048053,0.04760729,154.9,154.87,3.2749391]
[1724788048258,0.04760729,154.9,154.87,0.0468391]
[1724788048466,0.04760729,154.9,154.88,3.2281]
[1724788049666,3.27530729,154.9,154.88,3.2281]
[1724788050370,0.04760729,154.9,154.89,3.2279]
[1724788051362,4.06,154.96,154.93,3.2269]
[1724788051861,12.4444,154.98,154.94,3.2267]
[1724788052067,4.06,154.97,154.94,3.2267]
[1724788052359,4.10151703,154.97,154.94,3.27614955]
[1724788052569,7.32771703,154.97,154.94,3.27614955]
[1724788055663,4.10151703,154.97,154.94,3.27614955]
[1724788055870,4.10151703,154.97,154.95,3.2266]
[1724788056070,0.04151703,154.97,154.94,0.04944955]
[1724788056468,0.04151703,154.97,154.95,3.2264]
[1724788057468,0.04151703,154.97,154.96,3.2264]
[1724788057671,0.04151703,154.97,154.94,0.04944955]
[1724788057873,9.96151703,154.97,154.94,0.04944955]
[1724788058174,9.96151703,154.97,154.94,3.27614955]
[1724788059587,9.96151703,154.97,154.95,3.2266]
[1724788063085,0.04151703,154.97,154.95,3.2266]
[1724788063492,0.04151703,154.97,154.96,3.2264]
[1724788064890,0.04151703,154.97,154.95,3.2265]
[1724788066093,3.26771703,154.97,154.95,3.2265]
[1724788068188,0.04151703,154.97,154.94,0.04944955]
[1724788069092,3.26781703,154.97,154.94,3.27614955]
[1724788072790,3.26781703,154.97,154.95,3.2266]
[1724788074292,0.04151703,154.97,154.95,3.2266]
[1724788076694,3.26771703,154.97,154.95,3.2266]
[1724788078491,0.04151703,154.97,154.96,3.2264]
[1724788082500,0.04151703,154.97,154.95,3.2266]
[1724788083396,0.04151703,154.97,154.96,3.2264]
[1724788084899,0.04151703,154.97,154.96,13.1464]
[1724788086894,0.04151703,154.97,154.94,3.27614955]
[1724788087098,9.92,154.96,154.94,0.04944955]
[1724788087302,9.92,154.95,154.94,0.04944955]
[1724788087507,9.92,154.95,154.91,1.29109498]
[1724788087806,9.92,154.92,154.91,4.66490601]
[1724788088001,16.43630887,154.92,154.91,4.66490601]
[1724788088203,16.43630887,154.92,154.91,1.29109498]
[1724788088705,13.1473,154.92,154.91,1.29109498]
[1724788089306,16.39389207,154.92,154.91,1.29109498]
[1724788090503,13.1473,154.92,154.91,1.29109498]
[1724788091996,9.92,154.92,154.91,1.29109498]
[1724788093302,0.04558604,154.93,154.91,1.29109498]
[1724788094399,0.04558604,154.93,154.91,4.51839498]
[1724788094708,0.04558604,154.93,154.91,1.29109498]
[1724788095600,9.92,154.92,154.91,1.29109498]
[1724788095801,9.92,154.92,154.9,0.04761601]
[1724788097114,13.1473,154.92,154.9,0.04761601]
[1724788099022,13.1473,154.92,154.9,3.27531601]
[1724788100306,3.27268604,154.93,154.9,3.27531601]
[1724788102922,0.04558604,154.93,154.91,3.2274]
[1724788108026,3.27268604,154.93,154.91,3.2274]
[1724788109916,3.27268604,154.93,154.9,3.27521601]
[1724788111321,3.2274,154.92,154.9,0.04761601]
[1724788112022,13.1475,154.91,154.9,0.04761601]
[1724788113931,3.2274,154.92,154.9,0.04761601]
[1724788114522,3.2275,154.91,154.9,0.04761601]
[1724788116035,13.1475,154.91,154.9,0.04761601]
[1724788134752,3.2282,154.88,154.85,3.2287]
[1724788134949,13.1482,154.88,154.85,3.2287]
[1724788135555,3.2284,154.87,154.84,3.2289]
[1724788135859,3.27651969,154.87,154.84,3.27696265]
[1724788136955,3.2285,154.86,154.84,3.27696265]
[1724788139163,3.27651969,154.87,154.84,3.27696265]
[1724788141058,3.2286,154.86,154.84,3.27696265]
[1724788141555,3.2287,154.85,154.84,0.04806265]
[1724788142462,13.1487,154.85,154.84,0.04806265]
[1724788147654,0.04811969,154.87,154.84,0.04806265]
[1724788147855,0.04811969,154.87,154.84,9.96806265]
[1724788148652,0.04811969,154.87,154.86,3.2285]
[1724788150465,3.2274,154.92,154.89,3.2279]
[1724788150653,13.88,154.93,154.87,9.92]
[1724788151059,13.88,154.93,154.88,3.228]
[1724788151259,3.2274,154.92,154.88,3.228]
[1724788151460,3.26863404,154.92,154.88,3.26868295]
[1724788152765,9.92,154.9,154.88,0.04068295]
[1724788154060,3.2279,154.89,154.88,0.04068295]
[1724788154261,9.92,154.9,154.88,0.04068295]
[1724788158170,9.92,154.9,154.88,3.26878295]
[1724788159274,9.92,154.9,154.89,3.2279]
[1724788169264,13.1477,154.9,154.88,3.26868295]
[1724788175869,3.2277,154.9,154.88,3.26868295]
[1724788176071,0.04123404,154.92,154.89,3.2278]
[1724788176470,0.04123404,154.92,154.88,0.04068295]
[1724788176774,0.04123404,154.92,154.89,3.2277]
[1724788178077,3.26863404,154.92,154.89,3.2277]
[1724788183381,0.04123404,154.92,154.88,0.04068295]
[1724788183781,0.04123404,154.92,154.9,3.2276]
[1724788185285,3.26853404,154.92,154.9,3.2276]
[1724788192592,3.26853404,154.92,154.89,3.2278]
[1724788195801,3.26853404,154.92,154.88,0.04068295]
[1724788195802,13.1475,154.91,154.88,3.26878295]
[1724788196094,9.92,154.9,154.88,0.04068295]
[1724788196490,13.1478,154.9,154.88,0.04068295]
[1724788200307,3.2279,154.89,154.88,0.04068295]
[1724788200602,3.96,154.89,154.82,4.6678312]
[1724788200901,3.96,154.89,154.84,3.2288]
[1724788201109,3.7221,154.91,154.83,9.92]
[1724788201299,17.1078,154.9,154.84,13.29602382]
[1724788201497,0.04750005,154.89,154.85,0.04881166]
[1724788202206,0.04750005,154.89,154.86,3.2285]
[1724788202609,3.27550005,154.89,154.85,3.27741166]
[1724788202817,13.19550005,154.89,154.85,3.27741166]
[1724788203313,3.2281,154.88,154.85,3.27741166]
[1724788204311,3.2281,154.88,154.85,0.04881166]
[1724788204514,3.2283,154.87,154.85,0.04881166]
[1724788204815,9.92,154.86,154.85,0.04881166]
[1724788205115,9.92,154.87,154.85,0.04881166]
[1724788205816,9.92,154.87,154.85,3.27751166]
[1724788208121,0.04750005,154.89,154.85,0.04881166]
[1724788208728,9.92,154.87,154.85,0.04881166]
[1724788209217,3.2285,154.86,154.85,0.04881166]
[1724788209419,9.92,154.87,154.85,0.04881166]
[1724788210330,13.1484,154.87,154.85,0.04881166]
[1724788211220,3.2285,154.86,154.85,0.04881166]
[1724788211617,9.92,154.87,154.8,82.80527722]
[1724788211828,9.92,154.83,154.81,3.2294]
[1724788212221,9.92,154.83,154.67,6.465]
[1724788212417,43.64,154.85,154.74,13.88]
[1724788212418,9.92,154.81,154.74,13.88]
[1724788212625,0.04635002,154.79,154.76,0.04695218]
[1724788212820,0.04635002,154.79,154.78,3.2302]
[1724788213019,0.04635002,154.79,154.78,3.37796665]
[1724788213226,0.04635002,154.79,154.76,0.04695218]
[1724788213613,0.04635002,154.79,154.77,3.37841833]
[1724788213824,0.04635002,154.79,154.76,0.04695218]
[1724788214125,0.04635002,154.79,154.77,3.37818694]
[1724788214327,0.04635002,154.79,154.76,0.04695218]
[1724788215227,0.04635002,154.79,154.78,3.2302]
[1724788221618,0.04635002,154.79,154.76,9.96695218]
[1724788221619,0.04635002,154.79,154.76,0.04695218]
[1724788221931,9.96635002,154.79,154.76,0.04695218]
[1724788222725,9.92,154.77,154.76,0.04695218]
[1724788224327,9.92,154.77,154.7,1.0]
[1724788224527,9.92,154.74,154.7,1.0]
[1724788224727,9.92,154.74,154.72,3.2313]
[1724788225326,9.92,154.74,154.7,1.0]
[1724788225327,9.92,154.73,154.71,0.04550176]
[1724788225933,9.92,154.73,154.71,3.27710176]
[1724788226432,9.92,154.74,154.71,3.27710176]
[1724788228236,9.92,154.74,154.72,3.2314]
[1724788230232,13.1511,154.74,154.71,0.04550176]
[1724788230439,9.92,154.73,154.71,0.04550176]
[1724788230934,13.1513,154.73,154.71,0.04550176]
[1724788232838,9.92,154.73,154.71,0.04550176]
[1724788233038,9.92,154.73,154.71,3.27700176]
[1724788236243,13.1512,154.73,154.71,0.04550176]
[1724788236446,9.92,154.73,154.71,0.04550176]
[1724788236838,13.1513,154.73,154.71,3.27710176]
[1724788237145,9.92,154.73,154.71,3.27710176]
[1724788242546,13.1511,154.74,154.72,3.2314]
[1724788243740,9.92,154.74,154.72,3.2314]
[1724788245346,9.92,154.74,154.73,3.2312]
[1724788245944,9.92,154.74,154.72,3.2313]
[1724788246344,3.2314,154.72,154.71,0.04550176]
[1724788247244,3.2316,154.71,154.7,1.0]
[1724788247452,13.1516,154.71,154.7,1.0]
[1724788248452,3.2315,154.72,154.7,1.0]
[1724788248650,9.92,154.71,154.7,1.0]
[1724788249740,13.1516,154.71,154.7,1.0]
[1724788253059,3.2316,154.71,154.7,1.0]
[1724788253249,9.92,154.71,154.7,1.0]
[1724788254344,9.92,154.71,154.7,4.2319]
[1724788254958,3.2313,154.73,154.7,4.2319]
[1724788255161,9.92,154.72,154.71,3.2316]
[1724788256048,9.92,154.72,154.7,4.2318]
[1724788256652,9.92,154.71,154.7,4.2318]
[1724788256956,9.92,154.71,154.7,1.0]
[1724788260958,9.92,154.71,154.7,4.2319]
[1724788261273,9.92,154.71,154.7,1.0]
[1724788262758,13.1516,154.71,154.7,1.0]
[1724788265160,9.92,154.71,154.7,1.0]
[1724788265369,3.2316,154.72,154.7,1.0]
[1724788265370,9.92,154.72,154.7,1.0]
[1724788266066,1.3203,154.73,154.7,1.0]
[1724788266373,13.88,154.74,154.7,1.0]
[1724788266575,9.92,154.74,154.7,1.0]
[1724788266876,9.92,154.72,154.71,3.2315]
[1724788269971,9.92,154.72,154.7,1.0]
[1724788270171,9.92,154.71,154.7,1.0]
[1724788271373,13.1516,154.71,154.7,1.0]
[1724788274979,3.2319,154.7,154.69,0.04914746]
[1724788275983,7.1919,154.7,154.69,0.04914746]
[1724788278285,7.1919,154.7,154.62,83.34026884]
[1724788278286,3.96,154.7,154.65,3.2329]
[1724788278585,9.92,154.66,154.65,3.2329]
[1724788280282,9.92,154.66,154.64,0.04692222]
[1724788280589,9.92,154.65,154.64,0.04692222]
[1724788281991,9.92,154.65,154.56,3.96]
[1724788282176,9.92,154.61,154.55,90.47100027]
[1724788282486,9.92,154.62,154.55,90.47100027]
[1724788283086,0.0438816,154.6,154.57,0.03020702]
[1724788284789,0.0438816,154.6,154.59,3.2342]
[1724788285693,9.9638816,154.6,154.59,3.2342]
[1724788285886,9.9638816,154.6,154.57,0.03020702]
[1724788286189,9.92,154.58,154.57,0.03020702]
[1724788286387,9.92,154.59,154.58,3.2344]
[1724788287586,9.92,154.59,154.57,3.26470702]
[1724788289192,9.92,154.59,154.58,3.2344]
[1724788289490,0.0438816,154.6,154.58,3.2344]
[1724788289895,0.0438816,154.6,154.59,3.2342]
[1724788291087,0.0438816,154.6,154.58,9.92]
[1724788291088,3.96,154.64,154.61,3.2335]
[1724788291296,13.153,154.65,154.61,3.2335]
[1724788292093,13.19832015,154.65,154.61,3.27907432]
[1724788292487,13.19832015,154.65,154.62,3.2335]
[1724788293198,13.19832015,154.65,154.61,3.27927432]
[1724788293396,9.92,154.64,154.61,3.27927432]
[1724788295393,9.92,154.64,154.62,3.2335]
[1724788300897,9.92,154.64,154.63,3.2333]
[1724788306305,9.92,154.64,154.62,3.2334]
[1724788307001,9.92,154.63,154.61,3.27927432]
[1724788307202,9.92,154.63,154.61,0.04557432]
[1724788307408,9.92,154.63,154.61,3.27927432]
[1724788309307,13.1533,154.63,154.61,3.27927432]
[1724788314206,9.92,154.63,154.62,3.2335]
[1724788314912,9.92,154.63,154.61,0.04557432]
[1724788315209,9.92,154.63,154.61,3.27917432]
[1724788318112,13.1534,154.63,154.61,0.04557432]
[1724788319614,13.1534,154.63,154.61,3.27927432]
[1724788320018,9.92,154.63,154.61,3.27927432]
[1724788321216,13.1533,154.63,154.61,3.27927432]
[1724788322618,13.1533,154.63,154.61,0.04557432]
[1724788322915,3.2335,154.62,154.61,0.04557432]
[1724788323209,7.1935,154.62,154.61,0.04557432]
[1724788323414,3.96,154.62,154.55,1.0]
[1724788323624,9.92,154.61,154.55,1.0]
[1724788324117,13.1538,154.61,154.58,3.2343]
[1724788324509,13.20203198,154.61,154.58,3.2628143]
[1724788326310,0.04823198,154.61,154.59,3.2341]
[1724788326519,4.00823198,154.61,154.59,3.2341]
[1724788332619,0.04823198,154.61,154.6,3.2339]
[1724788340525,9.96823198,154.61,154.6,3.2339]
[1724788341829,9.96823198,154.61,154.58,0.0285143]
[1724788342026,9.92,154.59,154.58,0.0285143]
[1724788346726,9.92,154.59,154.55,1.0]
[1724788346929,9.92,154.57,154.55,1.0]
[1724788347227,13.1546,154.57,154.55,1.0]
[1724788347423,9.92,154.57,154.55,1.0]
[1724788351432,9.92,154.57,154.55,4.235]
[1724788352140,13.1546,154.57,154.55,1.0]
[1724788352746,3.2348,154.56,154.55,1.0]
[1724788356142,9.92,154.57,154.55,1.0]
[1724788356143,13.1546,154.57,154.55,1.0]
[1724788357951,9.92,154.57,154.55,4.2349]
[1724788358245,0.04491148,154.58,154.55,1.0]
[1724788358439,0.04491148,154.58,154.57,3.2346]
[1724788379760,0.04491148,154.58,154.57,6.61926739]
[1724788380666,0.04491148,154.58,154.57,3.2346]
[1724788381475,9.96491148,154.58,154.55,1.0]
[1724788381771,9.92,154.56,154.55,1.0]
[1724788382268,9.92,154.56,154.55,4.38527522]
[1724788382468,9.92,154.56,154.55,1.0]
[1724788390573,3.96,154.57,154.55,1.0]
[1724788390871,9.92,154.56,154.55,1.0]
[1724788391275,9.92,154.56,154.55,4.235]
[1724788391476,13.88,154.57,154.55,4.235]
[1724788393378,17.1146,154.57,154.55,1.0]
[1724788394176,13.88,154.57,154.55,1.0]
[1724788394677,13.88,154.57,154.55,4.235]
[1724788398074,9.92,154.57,154.56,3.2348]
[1724788398284,4.00491148,154.58,154.55,1.0]
[1724788398977,0.04491148,154.58,154.57,3.2346]
[1724788405381,0.04491148,154.58,154.57,6.6192353]
[1724788405579,0.04491148,154.58,154.57,3.2346]
[1724788406678,9.96491148,154.58,154.57,3.2346]
[1724788409083,13.19931148,154.58,154.55,1.0]
[1724788409288,9.92,154.56,154.55,1.0]
[1724788410271,9.92,154.56,154.55,4.2348]
[1724788414390,9.92,154.56,154.55,1.0]
[1724788418386,13.1548,154.56,154.55,1.0]
[1724788420688,17.1148,154.56,154.55,1.0]
[1724788422393,0.04455855,154.54,154.51,3.2358]
[1724788422590,9.92,154.52,154.51,3.2358]
[1724788422897,0.04455855,154.54,154.51,3.2358]
[1724788423097,9.92,154.53,154.51,3.2358]
[1724788424586,9.92,154.53,154.48,1.2988]
[1724788424888,9.92,154.53,154.52,3.2356]
[1724788428785,9.92,154.53,154.51,3.2358]
[1724788430003,0.04455855,154.54,154.51,3.2358]
[1724788430004,9.92,154.52,154.51,3.2358]
[1724788432802,9.92,154.53,154.51,3.2358]
[1724788437100,3.27975855,154.54,154.51,3.2358]
[1724788437301,9.92,154.53,154.51,3.2358]
[1724788440409,9.92,154.52,154.5,3.2359]
[1724788441314,3.27985855,154.54,154.51,3.2358]
[1724788441496,9.92,154.52,154.46,4.4949626]
[1724788441700,0.04620842,154.51,154.47,1.29455029]
[1724788442001,0.04620842,154.51,154.5,3.2358]
[1724788445404,0.04620842,154.51,154.49,3.2362]
[1724788445715,0.04620842,154.51,154.46,4.4949626]
[1724788445907,0.04620842,154.51,154.47,4.6812501]
[1724788446106,0.04620842,154.51,154.48,4.6812501]
[1724788446308,0.04620842,154.51,154.5,3.236]
[1724788453831,231.67521348,154.65,154.53,3.2352]
[1724788454026,9.92,154.57,154.53,3.2352]
[1724788454230,1.2677,154.63,154.52,9.92]
[1724788454231,3.96,154.59,154.52,9.92]
[1724788454533,16.35044012,154.6,154.52,9.92]
[1724788454827,0.04385879,154.58,154.54,0.04486778]
[1724788455330,0.04385879,154.58,154.57,3.2346]
[1724788476452,0.04385879,154.58,154.56,3.2347]
[1724788477046,0.04385879,154.58,154.57,3.2346]
[1724788481957,0.04385879,154.58,154.55,9.92]
[1724788483359,0.04385879,154.58,154.57,3.2346]
[1724788490376,0.04385879,154.58,154.54,0.04486778]
[1724788490574,9.92,154.57,154.54,0.04486778]
[1724788490770,9.92,154.57,154.54,3.27996778]
[1724788491263,13.1546,154.57,154.54,0.04486778]
[1724788493169,3.2348,154.56,154.54,0.04486778]
[1724788493367,9.92,154.57,154.54,0.04486778]
[1724788494474,13.1546,154.57,154.54,0.04486778]
[1724788497285,9.92,154.57,154.55,3.2349]
[1724788497472,9.92,154.57,154.54,0.04486778]
[1724788498388,9.92,154.57,154.54,3.28006778]
[1724788498990,9.92,154.57,154.54,0.04486778]
[1724788499490,13.1546,154.57,154.54,0.04486778]
[1724788500388,9.92,154.57,154.54,0.04486778]
[1724788500685,0.04385879,154.58,154.54,0.04486778]
[1724788501087,0.04385879,154.58,154.55,3.2349]
[1724788501280,0.04385879,154.58,154.55,9.92]
[1724788501478,0.04385879,154.58,154.56,3.2347]
[1724788501885,0.04385879,154.58,154.55,9.92]
[1724788502478,0.04385879,154.58,154.54,0.04486778]
[1724788502680,9.96385879,154.58,154.54,0.04486778]
[1724788503281,3.27835879,154.58,154.55,3.2349]